bitfinex/quotes_BTCUSD_20220204
["timestamp","ask_amount","ask_price","bid_price","bid_amount"]
[1643961387331,0.0010197,37917.0,37914.0,1.98223023]
[1643961387534,0.00035302,37916.0,37914.0,1.98223023]
[1643961387734,0.0010197,37917.0,37914.0,1.98223023]
[1643961387937,0.0010197,37917.0,37914.0,0.115943]
[1643961388135,0.346502,37916.0,37914.0,0.115943]
[1643961388535,0.34685502,37916.0,37914.0,0.115943]
[1643961388735,0.34685502,37916.0,37914.0,0.065943]
[1643961388939,0.346502,37916.0,37914.0,0.065943]
[1643961389135,0.34685502,37916.0,37914.0,0.065943]
[1643961389735,0.34685502,37916.0,37914.0,0.115943]
[1643961390235,0.00035302,37916.0,37914.0,0.115943]
[1643961390488,0.29078321,37917.0,37914.0,0.065943]
[1643961390689,0.34685502,37916.0,37914.0,0.065943]
[1643961390889,0.23888782,37915.0,37914.0,0.065943]
[1643961391090,0.23888782,37915.0,37912.0,0.131885]
[1643961391293,0.34685502,37915.0,37913.0,0.0010198]
[1643961391497,1.19906191,37914.0,37913.0,0.0010198]
[1643961391691,0.59556391,37914.0,37913.0,0.0010198]
[1643961392292,0.59556391,37914.0,37912.0,0.131885]
[1643961392492,0.59556391,37914.0,37912.0,0.13290482]
[1643961392692,1.08939753,37913.0,37912.0,0.13290482]
[1643961392891,0.09570615,37913.0,37912.0,0.13290482]
[1643961393094,0.59556391,37914.0,37912.0,0.13290482]
[1643961393293,0.59591693,37914.0,37912.0,0.13290482]
[1643961393494,0.8,37913.0,37912.0,0.131885]
[1643961393793,0.59591693,37914.0,37912.0,0.131885]
[1643961394148,0.23631435,37913.0,37912.0,0.131885]
[1643961394338,0.67324384,37914.0,37912.0,0.131885]
[1643961395937,0.23822017,37913.0,37912.0,0.131885]
[1643961396540,0.47418193,37914.0,37912.0,0.131885]
[1643961396744,0.39685502,37914.0,37912.0,0.131885]
[1643961397140,0.05035302,37914.0,37912.0,0.131885]
[1643961397339,0.00035302,37914.0,37912.0,0.131885]
[1643961397539,0.05305302,37915.0,37912.0,0.131885]
[1643961397740,0.00035302,37914.0,37912.0,0.131885]
[1643961397985,0.346502,37914.0,37912.0,0.131885]
[1643961398187,0.00035302,37914.0,37912.0,0.131885]
[1643961398389,0.05305302,37915.0,37912.0,0.131885]
[1643961398588,0.34685502,37914.0,37912.0,0.131885]
[1643961398789,0.05305302,37915.0,37912.0,0.131885]
[1643961398990,0.34685502,37914.0,37912.0,0.13176714]
[1643961399189,0.346502,37914.0,37912.0,0.13176714]
[1643961399393,0.34685502,37914.0,37912.0,0.13176714]
[1643961400790,0.7,37913.0,37911.0,0.00101983]
[1643961400991,0.346502,37912.0,37911.0,0.00101983]
[1643961401491,0.346502,37912.0,37911.0,0.13292183]
[1643961401492,0.05,37912.0,37911.0,0.13292183]
[1643961401940,0.20823302,37912.0,37911.0,0.131902]
[1643961402136,0.05,37912.0,37911.0,0.131902]
[1643961402333,0.00035302,37914.0,37911.0,0.131902]
[1643961402535,0.0527,37915.0,37911.0,0.131902]
[1643961402536,0.05,37912.0,37911.0,0.131902]
[1643961402735,0.00035302,37914.0,37911.0,0.131902]
[1643961403036,0.04,37912.0,37911.0,0.131902]
[1643961403235,0.04,37912.0,37911.0,0.00101983]
[1643961403637,0.00035302,37913.0,37911.0,0.00101983]
[1643961403840,0.346502,37912.0,37911.0,0.00101983]
[1643961404038,0.271597,37916.0,37911.0,0.083687]
[1643961404039,0.00035302,37913.0,37911.0,0.083687]
[1643961404237,0.04,37912.0,37910.0,0.065955]
[1643961404440,0.00035302,37915.0,37910.0,0.11697485]
[1643961404638,0.04,37911.0,37910.0,0.06697485]
[1643961404939,0.04,37911.0,37910.0,0.00101985]
[1643961405507,0.04,37911.0,37909.0,0.131901]
[1643961405708,0.04035302,37911.0,37909.0,0.13292086]
[1643961405907,0.04,37911.0,37909.0,0.13292086]
[1643961406708,0.04035302,37911.0,37909.0,0.131901]
[1643961406912,0.04,37911.0,37909.0,0.131901]
[1643961407710,0.03596892,37910.0,37909.0,0.197848]
[1643961408108,0.03596892,37910.0,37909.0,0.131901]
[1643961418739,0.03596892,37910.0,37908.0,0.08100095]
[1643961418740,0.03596892,37910.0,37908.0,0.06595]
[1643961418940,0.03596892,37910.0,37908.0,0.06696987]
[1643961419140,0.28337751,37910.0,37908.0,0.06696987]
[1643961419739,0.28337751,37910.0,37908.0,0.00101987]
[1643961419944,0.28337751,37910.0,37906.0,0.131909]
[1643961420139,0.03596892,37908.0,37907.0,0.00101988]
[1643961420984,0.03596892,37908.0,37906.0,0.131909]
[1643961421184,0.03596892,37908.0,37906.0,0.1329289]
[1643961421385,0.03596892,37908.0,37907.0,0.01403108]
[1643961421585,0.03596892,37908.0,37907.0,0.55]
[1643961421787,0.03596892,37908.0,37907.0,0.01403108]
[1643961421984,0.03596892,37908.0,37906.0,0.13839947]
[1643961422189,0.03596892,37908.0,37907.0,0.01403108]
[1643961422588,0.03596892,37908.0,37906.0,0.13737957]
[1643961424734,0.03596892,37908.0,37906.0,0.18737957]
[1643961425735,0.03596892,37908.0,37906.0,0.13737957]
[1643961426336,0.03596892,37908.0,37907.0,0.01403108]
[1643961428085,0.03596892,37908.0,37906.0,0.18839947]
[1643961428086,0.03596892,37908.0,37906.0,0.20243055]
[1643961428286,0.03596892,37908.0,37906.0,0.20141065]
[1643961428486,0.03596892,37908.0,37906.0,0.15243055]
[1643961428685,0.03596892,37908.0,37906.0,0.13839947]
[1643961429587,0.03596892,37908.0,37906.0,0.13737957]
[1643961430887,0.03596892,37908.0,37904.0,0.20338508]
[1643961431085,0.03596892,37908.0,37904.0,0.07998508]
[1643961431290,0.03596892,37908.0,37905.0,0.00396035]
[1643961431488,0.03596892,37908.0,37906.0,0.131909]
[1643961431735,0.03596892,37908.0,37907.0,0.01403108]
[1643961432535,0.03596892,37908.0,37907.0,0.25005068]
[1643961432734,0.03596892,37908.0,37907.0,0.54497813]
[1643961433535,0.03596892,37908.0,37907.0,0.74331806]
[1643961433738,0.03596892,37908.0,37907.0,0.54497813]
[1643961433935,0.03596892,37908.0,37907.0,0.74331806]
[1643961434136,0.03596892,37908.0,37907.0,1.08342144]
[1643961435236,0.03596892,37909.0,37908.0,0.731889]
[1643961435492,0.03596892,37909.0,37908.0,0.79592008]
[1643961435789,0.03596892,37909.0,37908.0,0.39426001]
[1643961435989,0.03596892,37909.0,37908.0,0.92848414]
[1643961436191,0.03596892,37909.0,37908.0,0.39004083]
[1643961436389,0.03596892,37909.0,37908.0,0.58838076]
[1643961436590,0.03596892,37909.0,37908.0,1.08838076]
[1643961436792,0.03596892,37909.0,37908.0,0.89004083]
[1643961436992,0.03596892,37909.0,37908.0,1.08838076]
[1643961437290,0.02596892,37909.0,37908.0,1.09838076]
[1643961438097,0.02596892,37909.0,37908.0,1.49041785]
[1643961438293,0.02596892,37909.0,37908.0,1.30025717]
[1643961438496,0.02596892,37909.0,37908.0,1.16028109]
[1643961438695,0.02596892,37909.0,37908.0,1.07824272]
[1643961438895,0.02596892,37909.0,37908.0,0.90393387]
[1643961439637,0.02596892,37909.0,37908.0,1.07824272]
[1643961439837,0.02596892,37909.0,37908.0,0.52115171]
[1643961440038,0.02596892,37909.0,37908.0,0.74352272]
[1643961440240,0.02596892,37909.0,37908.0,0.54518279]
[1643961440641,0.02596892,37909.0,37908.0,0.52115171]
[1643961440838,0.02596892,37909.0,37908.0,0.54518279]
[1643961442240,0.02596892,37909.0,37908.0,0.14393515]
[1643961442641,0.02596892,37909.0,37908.0,0.11990407]
[1643961443088,0.02596892,37909.0,37908.0,0.06990407]
[1643961443291,0.02596892,37909.0,37908.0,0.11990407]
[1643961444290,0.02596892,37909.0,37908.0,0.06990407]
[1643961444490,0.00096759,37912.0,37908.0,0.09544744]
[1643961444689,0.02445663,37909.0,37908.0,0.09544744]
[1643961446640,0.01840635,37909.0,37908.0,0.06990407]
[1643961447535,0.22572154,37914.0,37908.0,0.06990407]
[1643961447736,0.01840635,37909.0,37908.0,0.00396007]
[1643961449338,0.01840635,37909.0,37908.0,0.23765585]
[1643961449743,0.01840635,37909.0,37908.0,0.00396007]
[1643961451010,0.01940635,37909.0,37908.0,0.00396007]
[1643961452001,0.01940635,37909.0,37908.0,0.16509518]
[1643961452201,0.01940635,37909.0,37908.0,0.00396007]
[1643961453201,0.01940635,37909.0,37908.0,0.16454411]
[1643961454647,0.01940635,37909.0,37908.0,0.00396007]
[1643961454842,0.01940635,37909.0,37908.0,0.03033007]
[1643961455644,0.43208157,37909.0,37908.0,0.03033007]
[1643961457245,0.27138019,37909.0,37908.0,0.03033007]
[1643961458690,0.52729042,37909.0,37908.0,0.03033007]
[1643961459489,0.27138019,37909.0,37908.0,0.03033007]
[1643961460891,0.10413011,37907.0,37904.0,0.13192]
[1643961461291,0.01840635,37905.0,37904.0,0.13192]
[1643961463240,0.01840635,37905.0,37903.0,0.2015962]
[1643961464044,0.01840635,37905.0,37903.0,0.19884956]
[1643961464243,0.01840635,37905.0,37903.0,0.53804262]
[1643961464244,0.01381927,37905.0,37903.0,0.53804262]
[1643961465243,0.01381927,37904.0,37903.0,0.53804262]
[1643961465887,0.01381927,37904.0,37903.0,0.61949841]
[1643961466487,0.01337927,37904.0,37903.0,0.61949841]
[1643961469838,0.01337927,37904.0,37903.0,0.27933779]
[1643961470438,0.14665267,37909.0,37904.0,0.27630498]
[1643961470938,0.00071699,37907.0,37904.0,0.27630498]
[1643961471138,0.00071699,37907.0,37904.0,0.40822798]
[1643961471744,1.4,37906.0,37891.0,0.26435555]
[1643961471945,1.4,37906.0,37885.0,0.39406197]
[1643961471946,0.05,37898.0,37885.0,0.39406197]
[1643961472151,1.4,37892.0,37886.0,0.13384156]
[1643961472339,1.4,37892.0,37882.0,0.0021]
[1643961472340,0.95,37885.0,37882.0,0.0021]
[1643961472539,0.70393254,37884.0,37882.0,0.0021]
[1643961472742,1.90425058,37883.0,37882.0,0.0021]
[1643961473000,0.399202,37883.0,37882.0,0.0021]
[1643961473898,0.399202,37883.0,37882.0,0.16112306]
[1643961475097,0.30473054,37889.0,37882.0,0.16112306]
[1643961475098,0.065994,37890.0,37882.0,0.5158536]
[1643961475297,0.1198,37894.0,37889.0,0.18763988]
[1643961475298,0.346502,37892.0,37889.0,0.18763988]
[1643961475898,0.01912069,37893.0,37889.0,0.18763988]
[1643961476301,0.05,37892.0,37889.0,0.18763988]
[1643961477042,0.10634821,37893.0,37889.0,0.18763988]
[1643961477043,0.0201366,37893.0,37889.0,0.18763988]
[1643961477650,0.01912069,37893.0,37889.0,0.18763988]
[1643961477842,0.0201366,37893.0,37889.0,0.18763988]
[1643961478042,0.0201366,37893.0,37890.0,0.25449963]
[1643961478243,0.0201366,37893.0,37890.0,0.32049363]
[1643961478742,0.01912069,37893.0,37890.0,0.25449963]
[1643961479442,0.05,37895.0,37890.0,0.25449963]
[1643961479642,0.346502,37894.0,37890.0,0.25449963]
[1643961479846,0.696502,37891.0,37890.0,0.25449963]
[1643961480045,0.065993,37892.0,37890.0,0.25449963]
[1643961480244,0.446502,37891.0,37889.0,0.18763988]
[1643961480489,0.346502,37891.0,37886.0,0.05]
[1643961480691,0.562497,37891.0,37886.0,0.05]
[1643961480892,0.065999,37889.0,37886.0,0.05]
[1643961481190,0.346502,37888.0,37886.0,0.05]
[1643961481393,0.346502,37888.0,37884.0,0.33299416]
[1643961481394,0.346502,37888.0,37885.0,0.00051463]
[1643961481592,0.26470686,37887.0,37885.0,0.00051463]
[1643961481992,0.26470686,37887.0,37886.0,0.05]
[1643961482193,0.26363556,37887.0,37885.0,0.00051463]
[1643961482394,0.26363556,37887.0,37884.0,0.1]
[1643961482395,0.26363556,37887.0,37884.0,0.05]
[1643961482594,0.478522,37886.0,37885.0,0.0005144]
[1643961482793,1.88499574,37886.0,37885.0,0.0005144]
[1643961482992,1.88499574,37886.0,37882.0,0.0010712]
[1643961482993,1.4,37885.0,37882.0,0.0010712]
[1643961483192,0.346502,37883.0,37877.0,0.38309612]
[1643961483395,0.446502,37883.0,37877.0,0.38309612]
[1643961483592,0.412519,37882.0,37877.0,0.38309612]
[1643961483793,0.346502,37881.0,37878.0,0.18415337]
[1643961483994,0.166017,37882.0,37878.0,0.18415337]
[1643961484243,0.1,37881.0,37878.0,0.18415337]
[1643961484441,0.066017,37882.0,37878.0,0.18415337]
[1643961485145,0.066017,37882.0,37878.0,0.18466737]
[1643961485340,0.2614865,37881.0,37878.0,0.18466737]
[1643961485540,0.36096913,37883.0,37878.0,0.18466737]
[1643961485742,0.27299936,37883.0,37878.0,0.18466737]
[1643961485942,0.37299936,37883.0,37878.0,0.18415337]
[1643961486142,0.05,37880.0,37879.0,0.00101625]
[1643961486543,0.396502,37880.0,37879.0,0.00101625]
[1643961486743,0.67770664,37880.0,37879.0,0.00101625]
[1643961486943,0.62770664,37880.0,37879.0,0.00101625]
[1643961487143,0.62770664,37880.0,37877.0,0.0512712]
[1643961487345,0.28120464,37880.0,37878.0,0.00101626]
[1643961487544,0.1,37883.0,37878.0,0.00101626]
[1643961487992,0.62775877,37884.0,37878.0,0.0012029]
[1643961488291,0.26251654,37882.0,37878.0,0.00018664]
[1643961488492,0.26251654,37882.0,37879.0,0.00101624]
[1643961488691,0.26323463,37883.0,37879.0,0.00101624]
[1643961488891,0.26350726,37883.0,37879.0,0.00101624]
[1643961489090,0.31350726,37883.0,37879.0,0.00101624]
[1643961489293,0.15,37883.0,37879.0,0.00101624]
[1643961489492,0.15,37883.0,37878.0,0.00018664]
[1643961489493,0.4134428,37883.0,37878.0,0.00018664]
[1643961489691,0.15,37883.0,37879.0,0.00101624]
[1643961490092,0.14,37883.0,37879.0,0.00101624]
[1643961490296,0.1,37883.0,37879.0,0.00101624]
[1643961490494,0.386502,37881.0,37879.0,0.00101624]
[1643961490691,0.386502,37881.0,37878.0,0.00018664]
[1643961490892,0.65,37880.0,37873.0,0.49236697]
[1643961491094,0.696502,37880.0,37879.0,0.00101624]
[1643961491293,0.396502,37880.0,37879.0,0.00101624]
[1643961491939,0.65941304,37880.0,37874.0,0.00018664]
[1643961492141,0.65941304,37880.0,37878.0,0.00101626]
[1643961492142,0.0660164,37879.0,37878.0,0.00101626]
[1643961492338,0.79072948,37879.0,37878.0,0.00101626]
[1643961492538,0.85674648,37879.0,37878.0,0.00101626]
[1643961492739,1.1383459,37879.0,37878.0,0.00101626]
[1643961492941,0.95674648,37879.0,37878.0,0.00101626]
[1643961493138,1.24267704,37879.0,37874.0,0.00018664]
[1643961493339,0.89617504,37879.0,37877.0,0.00101628]
[1643961493538,0.52810142,37878.0,37877.0,0.00101628]
[1643961493740,0.18159942,37878.0,37877.0,0.00101628]
[1643961493939,0.1320334,37879.0,37877.0,0.00101628]
[1643961494240,0.0660164,37879.0,37877.0,0.00101628]
[1643961494440,0.0660164,37879.0,37874.0,0.00018664]
[1643961494640,0.05,37878.0,37876.0,0.00101628]
[1643961495039,0.0660164,37879.0,37876.0,0.00101628]
[1643961495242,0.05,37878.0,37876.0,0.00101628]
[1643961495494,0.05,37878.0,37875.0,0.00018664]
[1643961495690,0.05,37878.0,37875.0,0.0010163]
[1643961495890,0.05,37878.0,37875.0,0.00120294]
[1643961496091,0.05,37878.0,37875.0,0.0010163]
[1643961496493,0.1320284,37879.0,37875.0,0.0010163]
[1643961496691,0.1320284,37879.0,37874.0,0.00018664]
[1643961496692,0.0660164,37879.0,37874.0,0.00018664]
[1643961496891,0.0660164,37879.0,37875.0,0.0010163]
[1643961497893,0.0660164,37879.0,37874.0,0.00018664]
[1643961498096,0.0660164,37879.0,37875.0,0.00096088]
[1643961499143,0.0660164,37879.0,37874.0,0.00018664]
[1643961499339,0.0660164,37879.0,37875.0,0.00096088]
[1643961500341,0.0660164,37879.0,37874.0,0.00018664]
[1643961500541,0.1320294,37879.0,37875.0,0.00096088]
[1643961500942,0.05,37878.0,37875.0,0.00096088]
[1643961501144,0.1320294,37879.0,37875.0,0.00096088]
[1643961501544,0.1320294,37879.0,37874.0,0.00018664]
[1643961501742,0.1320294,37879.0,37875.0,0.00096088]
[1643961502890,0.1320294,37879.0,37875.0,0.0009646]
[1643961502891,0.0660164,37879.0,37875.0,0.0009646]
[1643961503294,0.06672254,37882.0,37873.0,0.85275079]
[1643961503492,0.06672254,37882.0,37873.0,0.65005919]
[1643961503693,0.06672254,37882.0,37879.0,0.29647009]
[1643961504494,0.346502,37881.0,37879.0,0.29647009]
[1643961504792,0.446502,37881.0,37879.0,0.29647009]
[1643961504992,0.06672254,37882.0,37879.0,0.59430267]
[1643961505897,0.06672254,37882.0,37880.0,0.0527]
[1643961506094,0.13200749,37889.0,37885.0,0.15850767]
[1643961506297,0.05,37890.0,37884.0,0.08244424]
[1643961506494,0.01893489,37892.0,37884.0,0.08244424]
[1643961506744,0.01893489,37892.0,37885.0,0.22534977]
[1643961506745,0.00050361,37889.0,37885.0,0.22534977]
[1643961506947,0.00050361,37889.0,37885.0,0.56378812]
[1643961507244,0.00050361,37889.0,37885.0,0.5636018]
[1643961507644,0.28624978,37893.0,37885.0,0.5636018]
[1643961507944,0.28624978,37893.0,37891.0,0.28890298]
[1643961507945,0.346502,37892.0,37891.0,0.28890298]
[1643961508343,0.41249175,37892.0,37891.0,0.28890298]
[1643961508944,0.46249175,37892.0,37891.0,0.28890298]
[1643961509142,0.41249175,37892.0,37891.0,0.28890298]
[1643961510992,0.06598975,37892.0,37891.0,0.28890298]
[1643961511197,0.41249175,37892.0,37891.0,0.28890298]
[1643961511395,0.06598975,37892.0,37891.0,0.28890298]
[1643961514743,0.41249175,37892.0,37891.0,0.28890298]
[1643961514944,0.06598975,37892.0,37891.0,0.28890298]
[1643961515142,0.41249175,37892.0,37891.0,0.28890298]
[1643961515342,0.06598975,37892.0,37891.0,0.28890298]
[1643961515541,0.06598975,37892.0,37891.0,0.34160298]
[1643961516745,0.06598975,37892.0,37891.0,0.63521463]
[1643961516946,0.00090591,37893.0,37891.0,0.63521463]
[1643961517146,0.29143592,37896.0,37891.0,0.63521463]
[1643961517147,0.06598453,37896.0,37891.0,0.63521463]
[1643961517346,0.00090437,37894.0,37891.0,0.63521463]
[1643961518494,0.06598453,37896.0,37891.0,0.63521463]
[1643961518696,0.346502,37895.0,37891.0,0.63521463]
[1643961518897,0.346502,37894.0,37891.0,0.63521463]
[1643961519095,0.346502,37893.0,37891.0,0.63521463]
[1643961519295,0.06598453,37896.0,37891.0,0.63521463]
[1643961519497,0.346502,37895.0,37891.0,0.63521463]
[1643961519696,0.06598453,37896.0,37893.0,0.09507636]
[1643961519996,0.346502,37895.0,37893.0,0.14777636]
[1643961520999,0.346502,37895.0,37893.0,0.28125711]
[1643961524247,1.496502,37894.0,37888.0,0.0527]
[1643961524447,1.496502,37894.0,37886.0,0.00018632]
[1643961524448,1.15,37894.0,37886.0,0.00018632]
[1643961524648,0.06599399,37893.0,37885.0,0.21468632]
[1643961525250,0.06599399,37893.0,37889.0,0.30275557]
[1643961525498,0.06599399,37893.0,37889.0,0.3818474]
[1643961525895,0.06694342,37893.0,37889.0,0.3818474]
[1643961526096,0.11694342,37893.0,37889.0,0.3818474]
[1643961527200,0.06694342,37893.0,37889.0,0.3818474]
[1643961527999,0.11599399,37893.0,37889.0,0.3818474]
[1643961528200,0.11694586,37893.0,37889.0,0.3818474]
[1643961529249,0.06599399,37893.0,37889.0,0.3818474]
[1643961529441,0.06694586,37893.0,37889.0,0.3818474]
[1643961529643,0.06694586,37893.0,37889.0,0.30275557]
[1643961529843,0.346502,37892.0,37889.0,0.30275557]
[1643961530043,0.47849651,37892.0,37889.0,0.30275557]
[1643961530342,0.346502,37891.0,37889.0,0.30275557]
[1643961531443,0.346502,37891.0,37889.0,0.29539275]
[1643961532242,0.346502,37891.0,37887.0,0.10290897]
[1643961532444,0.346502,37891.0,37887.0,0.10272265]
[1643961532645,0.6758732,37891.0,37887.0,0.00018632]
[1643961532893,0.05,37889.0,37886.0,0.00018632]
[1643961533094,0.26992417,37888.0,37885.0,0.05018632]
[1643961533291,0.19895496,37891.0,37885.0,0.28221212]
[1643961533492,0.05,37889.0,37885.0,0.28221212]
[1643961533694,0.4125001,37888.0,37885.0,0.3320258]
[1643961533892,0.0659981,37888.0,37885.0,0.3320258]
[1643961534293,0.06694986,37888.0,37885.0,0.33221212]
[1643961534992,0.00095176,37888.0,37885.0,0.33221212]
[1643961535192,0.05,37889.0,37885.0,0.33221212]
[1643961535394,0.00095177,37888.0,37885.0,0.33221212]
[1643961536493,0.05,37889.0,37885.0,0.33221212]
[1643961536746,0.00095177,37888.0,37885.0,0.33221212]
[1643961537251,0.00095177,37888.0,37885.0,0.28221212]
[1643961537252,0.05,37887.0,37885.0,0.28221212]
[1643961537446,0.05,37887.0,37885.0,0.2820258]
[1643961537647,0.346502,37886.0,37885.0,0.2820258]
[1643961537850,0.05,37887.0,37885.0,0.2820258]
[1643961538048,0.346502,37886.0,37885.0,0.2820258]
[1643961538248,0.05,37887.0,37885.0,0.2820258]
[1643961540395,0.11600379,37887.0,37885.0,0.2820258]
[1643961541493,0.11600379,37887.0,37883.0,0.00018632]
[1643961541694,0.11600379,37887.0,37882.0,0.30705102]
[1643961541895,0.11600379,37887.0,37882.0,0.3068647]
[1643961542502,0.11600379,37887.0,37882.0,0.56346753]
[1643961542698,0.00095179,37886.0,37882.0,0.56346753]
[1643961543099,0.00095179,37886.0,37882.0,0.61346753]
[1643961543599,0.11600379,37887.0,37882.0,0.61346753]
[1643961543799,0.0009518,37886.0,37882.0,0.61346753]
[1643961544845,0.11600379,37887.0,37882.0,0.56346753]
[1643961545047,0.11600379,37887.0,37886.0,0.78337643]
[1643961545245,0.46250579,37887.0,37886.0,0.78337643]
[1643961545444,0.72565348,37887.0,37886.0,0.78337643]
[1643961545646,0.46250579,37887.0,37886.0,0.78337643]
[1643961546445,0.72497625,37887.0,37886.0,0.78337643]
[1643961546645,0.65897246,37887.0,37886.0,0.78337643]
[1643961546845,0.396502,37887.0,37886.0,0.78337643]
[1643961547648,0.346502,37887.0,37886.0,0.78337643]
[1643961548092,1.30542073,37887.0,37886.0,0.78337643]
[1643961548491,0.75542073,37887.0,37886.0,0.78337643]
[1643961548691,0.486502,37887.0,37886.0,0.78337643]
[1643961550895,1.436502,37887.0,37886.0,0.17803301]
[1643961551098,0.486502,37887.0,37886.0,0.17803301]
[1643961551295,0.71250592,37887.0,37886.0,0.17803301]
[1643961551751,1.4,37886.0,37880.0,0.00018632]
[1643961551952,1.4,37886.0,37878.0,0.28802]
[1643961551953,0.35803124,37884.0,37878.0,0.00018632]
[1643961552153,0.386502,37883.0,37879.0,0.00069962]
[1643961552351,0.05,37880.0,37879.0,0.0005133]
[1643961552651,0.436502,37880.0,37879.0,0.0005133]
[1643961552855,0.19,37880.0,37879.0,0.0005133]
[1643961553051,0.15,37880.0,37879.0,0.0005133]
[1643961553250,0.15,37880.0,37878.0,0.00018632]
[1643961553452,0.15,37880.0,37878.0,0.00044497]
[1643961553650,0.15,37880.0,37878.0,0.00063129]
[1643961554050,0.29201708,37885.0,37878.0,0.00063129]
[1643961554051,0.06600611,37883.0,37878.0,0.00063129]
[1643961554252,0.05,37881.0,37878.0,0.00063129]
[1643961554452,0.05,37881.0,37878.0,0.00018632]
[1643961554650,0.05,37881.0,37879.0,0.00044496]
[1643961555053,0.05,37882.0,37879.0,0.00044496]
[1643961555254,0.05,37882.0,37881.0,0.6999021]
[1643961555505,0.06600205,37886.0,37881.0,0.1499021]
[1643961555506,0.05,37885.0,37881.0,0.1499021]
[1643961555799,0.396502,37885.0,37884.0,0.22533002]
[1643961559557,0.05,37885.0,37884.0,0.22533002]
[1643961559757,0.396502,37885.0,37884.0,0.22533002]
[1643961559956,0.05,37885.0,37884.0,0.22533002]
[1643961560358,0.396502,37885.0,37884.0,0.22533002]
[1643961560563,0.546502,37885.0,37882.0,0.00018632]
[1643961560760,0.546502,37885.0,37875.0,0.09110094]
[1643961560761,0.05,37883.0,37879.0,0.00113622]
[1643961561061,0.346502,37884.0,37879.0,0.00113622]
[1643961561062,0.436502,37880.0,37879.0,0.0009499]
[1643961561259,0.396502,37880.0,37879.0,0.0009499]
[1643961561462,0.496502,37880.0,37879.0,0.0009499]
[1643961561660,0.19,37880.0,37876.0,0.30221095]
[1643961561861,0.14,37880.0,37878.0,0.00094986]
[1643961562160,0.05,37879.0,37878.0,0.00094986]
[1643961562561,0.14739001,37879.0,37878.0,0.00094986]
[1643961562763,0.14739001,37879.0,37876.0,0.00018632]
[1643961562764,0.49389201,37879.0,37876.0,0.00018632]
[1643961563008,0.49389201,37879.0,37871.0,0.06]
[1643961563009,0.436502,37877.0,37873.0,0.00018632]
[1643961563212,0.436502,37877.0,37871.0,0.01380006]
[1643961563408,0.19,37877.0,37871.0,0.01380006]
[1643961563610,0.1,37877.0,37871.0,0.03468578]
[1643961563811,0.05,37872.0,37871.0,0.03468578]
[1643961564010,0.05,37872.0,37871.0,0.02588572]
[1643961564710,0.05,37872.0,37871.0,0.18774929]
[1643961565110,0.05,37872.0,37871.0,0.02588572]
[1643961565610,0.05,37872.0,37871.0,0.02607204]
[1643961565813,0.05,37872.0,37871.0,0.00518632]
[1643961567943,0.05,37872.0,37871.0,0.329558]
[1643961569145,0.05,37873.0,37871.0,0.329558]
[1643961571597,0.05,37878.0,37874.0,0.19644631]
[1643961571895,0.05,37878.0,37871.0,0.329558]
[1643961571896,0.04,37879.0,37877.0,0.23250394]
[1643961572097,0.396502,37878.0,37877.0,0.23250394]
[1643961572296,0.05,37878.0,37877.0,0.23250394]
[1643961572896,0.05,37878.0,37877.0,0.23269026]
[1643961579202,0.22600392,37887.0,37878.0,1.4]
[1643961579403,0.10696289,37888.0,37887.0,0.18981895]
[1643961579404,0.00095189,37888.0,37887.0,0.18981895]
[1643961579607,0.5997,37894.0,37887.0,0.23981895]
[1643961579608,0.82570392,37894.0,37887.0,0.23981895]
[1643961579802,0.346502,37893.0,37889.0,0.05]
[1643961580203,0.346502,37893.0,37890.0,0.28067819]
[1643961580602,0.386502,37893.0,37890.0,0.28067819]
[1643961580801,0.346502,37891.0,37890.0,0.28067819]
[1643961581002,0.33199511,37896.0,37889.0,0.27344202]
[1643961581204,0.346502,37895.0,37889.0,0.27344202]
[1643961581407,0.346502,37895.0,37889.0,0.3633164]
[1643961581653,0.446502,37895.0,37889.0,0.3633164]
[1643961582044,0.446502,37895.0,37890.0,0.18493224]
[1643961582452,0.00098617,37894.0,37890.0,0.18493224]
[1643961582647,0.00098617,37894.0,37893.0,0.05]
[1643961583146,0.22600392,37899.0,37893.0,0.05]
[1643961583647,0.00098615,37895.0,37893.0,0.05]
[1643961583846,0.00098615,37895.0,37894.0,0.79168]
[1643961584345,0.22600392,37899.0,37894.0,0.79168]
[1643961584545,0.346502,37898.0,37896.0,0.22796298]
[1643961588209,0.346502,37898.0,37894.0,0.79168]
[1643961588610,0.346502,37896.0,37894.0,0.79168]
[1643961588813,1.83691396,37895.0,37894.0,0.79168]
[1643961589010,0.63691396,37895.0,37894.0,0.79168]
[1643961589253,0.67691396,37895.0,37894.0,0.79168]
[1643961589457,1.75801298,37895.0,37894.0,0.03507892]
[1643961589755,1.15801298,37895.0,37894.0,0.03507892]
[1643961590053,0.85801298,37895.0,37894.0,0.03507892]
[1643961590252,0.56760102,37895.0,37894.0,0.03507892]
[1643961590454,0.52760102,37895.0,37894.0,0.03507892]
[1643961590654,0.346502,37895.0,37894.0,0.03507892]
[1643961590854,0.346502,37895.0,37894.0,0.03130575]
[1643961591653,0.346502,37895.0,37894.0,0.3339517]
[1643961591853,0.346502,37895.0,37894.0,0.03130575]
[1643961593295,0.496502,37895.0,37894.0,0.03130575]
[1643961593496,0.536502,37895.0,37894.0,0.03130575]
[1643961593698,0.486502,37895.0,37894.0,0.03130575]
[1643961593900,0.536502,37895.0,37894.0,0.03130575]
[1643961594099,0.83893396,37895.0,37894.0,0.03130575]
[1643961594700,0.496502,37895.0,37894.0,0.03130575]
[1643961595299,0.546502,37895.0,37894.0,0.03130575]
[1643961595499,0.586502,37895.0,37894.0,0.03130575]
[1643961595898,0.386502,37895.0,37894.0,0.03130575]
[1643961596103,0.536502,37895.0,37894.0,0.03130575]
[1643961596753,0.81693175,37895.0,37894.0,0.03130575]
[1643961597749,0.346502,37895.0,37894.0,0.03130575]
[1643961598150,0.00090595,37896.0,37894.0,0.03130575]
[1643961598449,0.00090595,37896.0,37895.0,0.05]
[1643961598850,0.49041255,37903.0,37895.0,0.31772213]
[1643961599051,0.346502,37902.0,37901.0,0.30162068]
[1643961599650,0.346502,37902.0,37898.0,0.16222501]
[1643961599858,0.346502,37902.0,37900.0,0.05]
[1643961600154,0.386502,37902.0,37894.0,0.08130575]
[1643961600401,0.346502,37901.0,37900.0,0.00694482]
[1643961601599,0.446502,37901.0,37900.0,0.00694482]
[1643961602004,0.48679846,37901.0,37900.0,0.00694482]
[1643961602406,0.44679846,37901.0,37900.0,0.00694482]
[1643961603801,0.34679846,37901.0,37900.0,0.05694482]
[1643961604003,0.00029646,37901.0,37900.0,0.05694482]